bitfinex/quotes_SOLUSD_20251030
["timestamp","ask_amount","ask_price","bid_price","bid_amount"]
[1761865921537,33.98148755,183.16,183.15,0.1]
[1761865922132,22.65583674,183.13,183.12,0.1]
[1761865922432,38.65729324,183.13,183.12,0.1]
[1761865923305,44.11789499,183.13,183.12,0.1]
[1761865923718,44.81789499,183.13,183.12,0.1]
[1761865924650,40.21453353,183.13,183.12,0.1]
[1761865925733,50.00336122,183.13,183.12,0.1]
[1761865925950,50.00336122,183.13,183.11,6.89098999]
[1761865926131,9.78882769,183.11,183.1,0.1]
[1761865926330,27.84203586,183.11,183.1,0.1]
[1761865926639,28.54203586,183.11,183.1,0.1]
[1761865927628,34.00323404,183.11,183.1,0.1]
[1761865927832,20.592,183.08,183.04,1.79088046]
[1761865928030,9.84350354,183.07,183.05,0.67]
[1761865928232,4.09534057,183.06,183.05,0.67]
[1761865928531,6.15917731,183.06,183.05,0.67]
[1761865928748,6.15917731,183.06,183.04,1.79088046]
[1761865928931,4.09534057,183.05,183.04,2.46088046]
[1761865929128,6.15917731,183.05,183.04,1.79088046]
[1761865929335,26.75117731,183.05,183.04,1.79088046]
[1761865929649,35.87760002,183.05,183.03,0.1]
[1761865929846,2.06383674,183.04,183.03,16.53250349]
[1761865930013,6.13416442,183.04,183.03,16.53250349]
[1761865930215,4.07032768,183.04,183.03,0.1]
[1761865930438,6.13416442,183.04,183.03,0.77]
[1761865930834,4.07032768,183.04,183.03,0.77]
[1761865931042,6.13416442,183.04,183.03,0.77]
[1761865931343,3.23018098,183.04,183.03,0.77]
[1761865931517,3.23018098,183.04,183.03,0.1]
[1761865931721,12.75791,183.04,183.03,0.1]
[1761865932123,22.54673769,183.04,183.03,0.1]
[1761865932322,23.24673769,183.04,183.03,0.1]
[1761865932815,26.83295327,183.04,183.03,0.1]
[1761865933017,29.78787023,183.04,183.03,0.1]
[1761865933630,26.20165465,183.04,183.03,0.1]
[1761865933833,4.06444231,183.04,183.03,0.1]
[1761865934037,3.23018098,183.05,183.03,0.1]
[1761865934038,8.69318277,183.05,183.03,0.1]
[1761865934255,3.65104142,183.09,183.04,0.67]
[1761865934256,3.23018098,183.06,183.04,0.67]
[1761865935139,20.592,183.06,183.04,0.67]
[1761865935535,23.82218098,183.06,183.04,0.67]
[1761865945043,23.82218098,183.06,183.03,21.99604699]
[1761865945262,3.23018098,183.06,183.03,16.53250349]
[1761865945562,3.23018098,183.06,183.03,17.23250349]
[1761865945747,3.23018098,183.06,183.03,5.56354513]
[1761865945947,3.23018098,183.06,183.04,6.1624508]
[1761865946459,3.23018098,183.06,183.04,5.4624508]
[1761865947465,3.23018098,183.05,183.04,5.4624508]
[1761865947759,3.23018098,183.05,183.04,0.7]
[1761865948158,3.23018098,183.06,183.04,0.7]
[1761865949439,20.592,183.05,183.04,0.7]
[1761865949851,23.82218098,183.05,183.04,0.7]
[1761865950676,8.69317444,183.05,183.03,16.53250349]
[1761865950848,17.78867657,183.04,183.03,0.1]
[1761865951559,30.38082769,183.01,183.0,0.1]
[1761865951757,41.30473312,183.01,183.0,0.1]
[1761865952059,37.66067657,183.01,183.0,0.1]
[1761865952244,42.02473815,183.01,183.0,0.1]
[1761865953457,47.48892043,183.01,183.0,0.1]
[1761865954340,51.12104015,183.01,183.0,0.1]
[1761865957045,47.07137225,183.01,183.0,0.1]
[1761865957246,51.12111936,183.01,183.0,0.1]
[1761865960159,50.40111936,183.01,183.0,0.1]
[1761865960369,50.40373749,183.01,183.0,0.1]
[1761865961255,40.6149098,183.01,183.0,0.1]
[1761865961459,36.97084822,183.01,183.0,0.1]
[1761865965283,37.69084822,183.01,183.0,0.1]
[1761865966395,47.47967591,183.01,183.0,0.1]
[1761865967069,52.0709523,183.01,183.0,0.1]
[1761865967270,47.47967591,183.01,183.0,0.1]
[1761865967573,9.78882769,183.0,182.93,61.8]
[1761865967777,3.23018098,182.94,182.93,0.8]
[1761865968091,7.27992809,182.94,182.93,0.8]
[1761865971391,4.04974711,182.94,182.93,6.26657191]
[1761865971589,4.04974711,182.95,182.93,6.26657191]
[1761865971781,20.592,182.95,182.93,5.56657191]
[1761865972202,24.65599294,182.94,182.93,0.1]
[1761865972791,4.06399294,182.94,182.93,5.56657191]
[1761865972994,20.592,182.95,182.93,6.26657191]
[1761865973176,20.592,182.95,182.94,0.7]
[1761865973377,24.6553044,182.95,182.94,0.7]
[1761865974507,27.88548538,182.95,182.94,0.7]
[1761865974719,24.6553044,182.95,182.94,0.7]
[1761865974892,27.88548538,182.95,182.94,0.7]
[1761865975281,23.82218098,182.95,182.94,0.7]
[1761865975800,20.592,182.95,182.94,6.16627309]
[1761865976312,3.23018098,182.96,182.94,6.16627309]
[1761865976601,3.23018098,182.96,182.95,0.7]
[1761865976980,4.06341445,182.96,182.95,0.7]
[1761865977183,14.37981151,183.02,182.95,6.1659743]
[1761865977392,13.14966402,183.01,182.95,6.1659743]
[1761865977597,3.23018098,182.98,182.96,0.7]
[1761865977988,3.23018098,182.99,182.96,0.7]
[1761865978679,2.85815706,183.02,182.96,0.7]
[1761865978900,7.29422922,183.01,182.96,3.93018098]
[1761865979108,4.06404824,183.0,182.97,0.7]
[1761865979403,3.23018098,183.01,182.98,5.46507815]
[1761865979791,20.592,183.0,182.99,0.7]
[1761865981113,20.592,183.02,182.99,0.7]
[1761865981305,3.23018098,183.04,182.99,9.39466199]
[1761865981504,4.06546259,183.03,182.99,9.39466199]
[1761865981697,20.592,183.02,183.0,0.7]
[1761865982291,20.592,183.02,183.0,3.93018098]
[1761865982704,20.592,183.02,183.01,0.7]
[1761865988619,3.23018098,183.04,183.01,6.16418228]
[1761865988992,3.23018098,183.04,183.02,0.7]
[1761865989196,4.06636933,183.03,183.02,0.7]
[1761865990894,4.06756279,183.03,183.02,0.7]
[1761865991094,3.23018098,183.04,183.02,0.7]
[1761865991327,2.06727657,183.04,183.02,0.7]
[1761865991625,20.592,183.01,183.0,0.7]
[1761865992528,20.592,183.02,183.0,6.1643524]
[1761865992720,20.592,183.02,183.01,0.7]
[1761865994434,24.66109046,183.02,183.01,0.7]
[1761865995324,24.66151423,183.02,183.01,0.7]
[1761865996239,20.592,183.02,183.01,0.7]
[1761865996820,2.85785891,183.05,183.01,6.16418228]
[1761865997021,4.06923407,183.04,183.01,6.16418228]
[1761865997208,2.06727657,183.06,183.02,0.67]
[1761865997538,4.06888853,183.05,183.02,2.73727657]
[1761865997743,2.06727657,183.07,183.02,2.73727657]
[1761865998032,4.06882762,183.06,183.03,0.67]
[1761865999424,4.06882762,183.06,183.03,6.13350732]
[1761866000006,4.06882762,183.06,183.03,5.46350732]
[1761866000206,4.06882762,183.06,183.03,6.13350732]
[1761866000409,11.59883455,183.06,183.02,5.46380679]
[1761866000710,2.06727657,183.03,183.0,73.29209329]
[1761866000910,6.133365,183.02,182.99,6.13469495]
[1761866001129,2.06727657,183.02,182.99,6.13469495]
[1761866001512,2.06727657,183.02,182.99,5.46469495]
[1761866001716,2.06727657,183.02,182.99,6.13469495]
[1761866002336,0.66,183.03,182.99,6.13469495]
[1761866002511,2.06727657,183.02,182.99,6.13469495]
[1761866003530,0.66,183.03,182.99,5.46469495]
[1761866003729,2.06727657,183.03,183.0,0.67]
[1761866004030,4.06696457,183.02,183.0,0.67]
[1761866004333,2.06727657,183.01,182.99,61.7]
[1761866004508,2.06727657,183.0,182.99,61.7]
[1761866004709,2.06727657,183.0,182.99,62.37]
[1761866005015,2.06727657,183.01,182.99,62.37]
[1761866005209,2.06727657,183.02,183.0,0.67]
[1761866005409,2.06727657,183.03,183.0,0.67]
[1761866005608,4.06719857,183.02,183.0,0.67]
[1761866006527,6.13447514,183.02,183.0,0.67]
[1761866006838,2.06727657,183.02,183.0,0.67]
[1761866007415,2.06727657,183.02,182.99,61.7]
[1761866007635,2.06727657,183.02,182.99,62.37]
[1761866007828,2.06727657,183.02,182.99,67.83470284]
[1761866008031,2.06727657,183.02,183.0,0.67]
[1761866009634,2.72727657,183.03,183.0,0.67]
[1761866009916,4.06777766,183.02,183.0,0.67]
[1761866010818,2.06727657,183.02,183.0,0.67]
[1761866011130,2.06727657,183.02,182.99,5.46470284]
[1761866011330,2.06727657,183.02,182.99,6.15470284]
[1761866011837,4.06830712,183.01,182.99,6.15470284]
[1761866012035,4.06830712,183.01,182.99,5.46470284]
[1761866012234,4.06830712,183.01,183.0,0.69]
[1761866013116,4.06830712,183.02,183.0,0.69]
[1761866013314,28.78290599,183.03,183.0,0.69]
[1761866013520,4.07158636,183.02,183.0,0.69]
[1761866013723,28.78290599,183.03,183.0,0.69]
[1761866013943,4.07157679,183.02,183.0,0.69]
[1761866014143,28.78290599,183.03,183.0,0.69]
[1761866014341,4.07180967,183.02,183.0,0.69]
[1761866014644,4.07180967,183.01,183.0,0.69]
[1761866015518,4.07180967,183.01,183.0,6.15448087]
[1761866018130,4.07180967,183.01,183.0,10.73026217]
[1761866019041,4.07180967,183.01,183.0,10.04026217]
[1761866019221,4.07180967,183.01,183.0,4.5757813]
[1761866019423,6.82908624,183.01,183.0,4.5757813]
[1761866020548,15.95262446,183.01,183.0,4.5757813]
[1761866020735,20.592,182.98,182.94,5.46627309]
[1761866020940,2.06727657,182.96,182.93,6.25645309]
[1761866021138,4.08125619,182.95,182.94,6.15625433]
[1761866021335,4.08125619,182.95,182.94,19.82478338]
[1761866023456,13.66045571,183.01,182.94,19.82478338]
[1761866023457,8.37535788,183.13,182.99,26.6404242]
[1761866023643,6.32767699,183.24,182.99,26.6404242]
[1761866023644,1e-08,183.25,183.2,1.99999999]
[1761866023946,0.69,183.37,183.27,20.592]
[1761866024148,7.22,183.36,183.33,2.06727657]
[1761866024452,7.22,183.36,183.34,4.06216076]
[1761866024636,7.22,183.36,183.24,8.26910628]
[1761866024637,7.22,183.36,183.35,4.06133204]
[1761866024837,7.22,183.36,183.34,16.40823693]
[1761866024838,9.28727657,183.36,183.34,16.40823693]
[1761866025048,33.04,183.39,183.34,16.40823693]
[1761866025344,12.41,183.38,183.34,16.40823693]
[1761866025644,0.69,183.37,183.34,16.40823693]
[1761866025832,11.72,183.36,183.34,16.40823693]
[1761866026230,0.69,183.36,183.34,16.40823693]
[1761866026448,11.72,183.35,183.34,16.40823693]
[1761866028243,12.41,183.35,183.34,16.40823693]
[1761866028434,0.69,183.35,183.34,16.40823693]
[1761866028631,12.39,183.35,183.34,16.40823693]
[1761866029065,1e-08,183.39,183.34,72.04411982]
[1761866029237,1e-08,183.39,183.38,5.24631843]
[1761866029435,1e-08,183.39,183.38,13.28505245]
[1761866029657,0.2,183.44,183.42,5.24631843]
[1761866029831,12.04,183.43,183.42,9.27401898]
[1761866030852,0.2,183.44,183.42,24.61970055]
[1761866031057,0.2,183.44,183.43,9.47937148]
[1761866031263,12.04,183.44,183.43,14.72568991]
[1761866031475,12.04,183.44,183.43,16.91142254]
[1761866032531,12.04,183.44,183.43,12.88372199]
[1761866033169,12.04,183.44,183.43,7.63740356]
[1761866033454,12.04,183.44,183.43,2.18573263]
[1761866033659,12.73,183.44,183.43,2.18573263]
[1761866034650,17.97631843,183.44,183.43,2.18573263]
[1761866035442,12.73,183.44,183.43,2.18573263]
[1761866036144,17.97631843,183.44,183.43,2.18573263]
[1761866038975,12.73,183.44,183.43,2.18573263]
[1761866039270,11.98,183.44,183.43,2.18573263]
[1761866039438,0.2,183.44,183.43,7.43205106]
[1761866039640,12.67,183.44,183.43,2.18573263]
[1761866041161,17.91631843,183.44,183.43,2.18573263]
[1761866043145,50.69631843,183.44,183.43,2.18573263]
[1761866046158,50.69631843,183.44,183.36,5.45375218]
[1761866046465,5.24631843,183.4,183.36,19.08997713]
[1761866046645,0.69,183.43,183.38,5.24631843]
[1761866046849,11.76,183.42,183.39,5.24631843]
[1761866047054,38.91631843,183.44,183.39,16.400164]
[1761866047253,5.24631843,183.42,183.39,16.400164]
[1761866047462,2.05897244,183.4,183.36,5.45375218]
[1761866047656,13.81897244,183.39,183.34,5.45409877]
[1761866047969,12.45,183.38,183.34,5.45409877]
[1761866048166,12.45,183.38,183.35,16.40285409]
[1761866048362,12.45,183.38,183.34,7.51307121]
[1761866048668,12.45,183.38,183.34,23.20807448]
[1761866048853,12.45,183.38,183.34,36.84394226]
[1761866049055,12.45,183.38,183.35,2.05897244]
[1761866049248,0.69,183.4,183.35,2.05897244]
[1761866049453,11.74,183.39,183.35,2.05897244]
[1761866049850,11.74,183.39,183.34,98.54394226]
[1761866050052,0.69,183.38,183.34,98.54394226]
[1761866051271,11.74,183.39,183.34,98.54394226]
[1761866051469,48.67500327,183.44,183.35,2.05897244]
[1761866051780,2.05897244,183.41,183.36,2.05897244]
[1761866051959,11.72,183.4,183.36,2.05897244]
[1761866052140,12.41,183.4,183.36,2.05897244]
[1761866052345,2.05897244,183.41,183.36,2.05897244]
[1761866052658,0.69,183.39,183.35,18.46182653]
[1761866053067,0.69,183.39,183.35,2.05897244]
[1761866053373,0.69,183.39,183.35,16.99655616]
[1761866053551,0.69,183.39,183.36,5.45375218]
[1761866053746,11.72,183.38,183.36,5.45375218]
[1761866054462,3.90758372,183.37,183.3,61.7]
[1761866054676,3.90758372,183.37,183.25,61.7]
[1761866054677,3.21758372,183.31,183.25,61.7]
[1761866054842,3.21758372,183.31,183.23,0.1]
[1761866054843,3.21758372,183.28,183.27,11.72]
[1761866055050,14.91758372,183.28,183.26,5.45672814]
[1761866055254,32.76,183.27,183.26,5.45672814]
[1761866055453,32.76,183.27,183.25,25.34253465]
[1761866055860,32.76,183.27,183.25,13.64253465]
[1761866056272,32.76,183.27,183.25,21.56504324]
[1761866056273,11.7,183.26,183.25,21.56504324]
[1761866056782,11.7,183.26,183.25,13.64253465]
[1761866057679,11.7,183.26,183.25,19.09956057]
[1761866058182,32.76,183.27,183.25,19.09956057]
[1761866058363,32.76,183.27,183.26,7.92250859]
[1761866058560,44.46,183.27,183.26,7.92250859]
[1761866058866,12.97923211,183.27,183.26,7.92250859]
[1761866059767,12.97923211,183.27,183.26,13.37923673]
[1761866060086,1e-08,183.27,183.26,17.36167466]
[1761866060265,32.78,183.29,183.27,9.78882769]
[1761866060467,32.78,183.29,183.28,15.48910808]
[1761866060860,44.46,183.29,183.28,15.48910808]
[1761866061989,44.46,183.29,183.28,20.94524077]
[1761866062983,44.46,183.29,183.28,9.43857062]
[1761866063363,44.46,183.29,183.28,13.03879515]
[1761866063874,44.46,183.29,183.28,9.43857062]
[1761866064082,44.46,183.29,183.28,5.45613269]
[1761866064984,44.46,183.29,183.27,5.4564304]
[1761866065378,44.46,183.29,183.27,13.37893899]
[1761866065684,44.46,183.29,183.28,16.40823693]
[1761866065982,45.17,183.29,183.28,16.40823693]
[1761866066180,44.46,183.29,183.28,16.40823693]
[1761866066378,44.46,183.29,183.28,20.03134374]
[1761866067186,45.17,183.29,183.28,25.48747643]
[1761866067557,44.46,183.29,183.28,25.48747643]
[1761866069100,44.42,183.29,183.28,25.48747643]
[1761866069593,32.78,183.29,183.28,25.48747643]
[1761866069778,44.4,183.29,183.28,25.48747643]
[1761866070290,32.78,183.29,183.28,25.48747643]
[1761866070477,32.78,183.29,183.28,33.40998502]
[1761866070784,44.4,183.29,183.28,33.40998502]
[1761866071683,44.4,183.29,183.28,95.10998502]
[1761866072060,44.4,183.29,183.28,91.48687821]
[1761866072256,32.78,183.29,183.28,90.98687821]
[1761866072585,44.4,183.29,183.28,90.98687821]
[1761866075284,32.78,183.29,183.28,86.28397559]
[1761866075495,44.38,183.29,183.28,86.28397559]
[1761866077799,45.06,183.29,183.28,5.45613269]
[1761866078093,45.06,183.29,183.27,5.45635973]
[1761866078094,48.27960597,183.29,183.27,5.45635973]
[1761866078389,3.89960597,183.28,183.27,5.45635973]
[1761866079189,3.89960597,183.28,183.26,13.64182036]
[1761866079398,12.26,183.27,183.26,13.64182036]
[1761866080675,0.68,183.27,183.26,13.64182036]
[1761866080879,12.26,183.27,183.26,13.64182036]
[1761866081823,0.68,183.27,183.26,13.64182036]
[1761866082031,12.26,183.27,183.26,13.64182036]
[1761866083174,12.26,183.27,183.26,80.7985485]
[1761866083587,12.26,183.27,183.26,61.7]
[1761866083796,15.47960597,183.27,183.24,5.45732372]
[1761866083986,0.68,183.26,183.24,19.10063304]
[1761866084186,11.56,183.25,183.24,19.10063304]
[1761866085785,11.54,183.25,183.24,19.10063304]
[1761866086285,0.68,183.26,183.24,19.10063304]
[1761866086599,11.54,183.25,183.24,19.10063304]
[1761866087000,12.22,183.25,183.24,19.10063304]
[1761866087208,11.54,183.25,183.24,19.10063304]
[1761866088088,0.68,183.27,183.24,19.10063304]
[1761866088505,11.54,183.26,183.24,19.10063304]
[1761866088986,12.22,183.26,183.24,19.10063304]
[1761866089310,12.22,183.26,183.24,80.80063304]
[1761866090084,32.78,183.29,183.24,80.80063304]
[1761866090286,32.78,183.29,183.25,3.21960597]
[1761866090496,11.52,183.28,183.27,3.21960597]
[1761866090888,11.52,183.28,183.24,80.80063304]
[1761866091086,11.52,183.28,183.27,3.21960597]
[1761866091580,11.52,183.28,183.26,3.21960597]
[1761866091777,11.52,183.28,183.27,5.4564304]
[1761866091984,32.78,183.29,183.27,70.37603637]
[1761866092213,32.78,183.29,183.28,3.21960597]
[1761866092500,44.3,183.29,183.28,3.21960597]
[1761866093800,11.52,183.29,183.28,3.21960597]
[1761866094002,11.52,183.29,183.28,8.67573866]
[1761866097594,12.2,183.29,183.28,5.45613269]
[1761866097913,12.2,183.29,183.28,67.15613269]
[1761866100599,35.99960597,183.32,183.28,67.15613269]
[1761866100600,33.45,183.32,183.28,22.31607039]
[1761866100806,32.78,183.32,183.31,3.21960597]
[1761866101130,3.21960597,183.41,183.31,64.91960597]
[1761866101317,0.67,183.39,183.36,3.21960597]
[1761866101618,0.67,183.39,183.37,3.21960597]
[1761866101792,3.21960597,183.43,183.33,3.21960597]
[1761866101793,0.67,183.43,183.38,3.21960597]
[1761866101992,0.67,183.42,183.39,3.21960597]
[1761866102208,0.67,183.42,183.41,5.45226541]
[1761866102499,0.87,183.44,183.41,22.30253492]
[1761866102894,0.2,183.44,183.41,22.30253492]
[1761866103206,0.67,183.43,183.41,22.30253492]
[1761866103718,0.2,183.44,183.41,22.30253492]
[1761866103923,0.87,183.44,183.41,22.30253492]
[1761866104723,0.2,183.44,183.43,3.21960597]
[1761866105111,1e-08,183.44,183.43,3.21960597]
[1761866105641,1e-08,183.44,183.43,33.60043366]
[1761866107198,1e-08,183.44,183.43,39.05210459]
[1761866109729,1e-08,183.44,183.43,100.75210459]
[1761866109924,1e-08,183.44,183.43,101.29727168]
[1761866110624,1e-08,183.5,183.47,3.21960597]
[1761866110820,1e-08,183.5,183.49,3.21960597]
[1761866111935,1e-08,183.5,183.49,8.66949424]
[1761866112334,0.67000001,183.5,183.49,5.44988827]
[1761866113147,3.88960598,183.5,183.49,4.72988827]
[1761866113439,5.90853097,183.5,183.49,4.72988827]
[1761866113910,5.90853097,183.5,183.47,13.6258273]
[1761866114113,0.67,183.49,183.47,13.6258273]
[1761866114312,5.23853096,183.48,183.46,5.45077946]
[1761866114613,0.67,183.49,183.46,5.45077946]
[1761866114831,5.90853096,183.48,183.46,5.45077946]
[1761866115037,5.23853096,183.47,183.46,5.45077946]
[1761866115240,5.90853096,183.47,183.46,5.45077946]
[1761866115622,0.67,183.49,183.46,24.31625907]
[1761866115807,1e-08,183.5,183.46,24.31625907]
[1761866115808,0.67000001,183.5,183.46,24.31625907]
[1761866116010,0.67,183.49,183.46,24.31625907]
[1761866116833,1e-08,183.5,183.47,5.23853096]
[1761866117209,1e-08,183.5,183.48,5.23853096]
[1761866117419,1e-08,183.5,183.47,5.23853096]
[1761866117614,1e-08,183.5,183.48,5.23853096]
[1761866118142,0.2,183.53,183.49,25.03313992]
[1761866118321,0.2,183.59,183.49,25.03313992]
[1761866118322,0.2,183.59,183.53,30.38082769]
[1761866118528,0.2,183.61,183.58,5.23853096]
[1761866118734,0.2,183.61,183.6,5.23853096]
[1761866119750,0.2,183.61,183.57,0.72]
[1761866119928,0.2,183.61,183.6,5.23853096]
[1761866120247,0.2,183.61,183.6,10.68515405]
[1761866120454,0.2,183.61,183.6,11.40515405]
[1761866120760,0.92,183.61,183.6,10.68515405]
[1761866120921,0.92,183.61,183.55,13.61978558]
[1761866121122,0.72,183.6,183.55,13.61978558]
[1761866121341,0.72,183.6,183.56,5.23853096]
[1761866121522,0.72,183.6,183.56,24.30586589]
[1761866121723,0.72,183.6,183.57,5.23853096]
[1761866121929,0.72,183.6,183.56,10.68634094]
[1761866123441,0.72,183.6,183.56,24.30586589]
[1761866124028,5.95853096,183.6,183.56,67.14780998]
[1761866124537,5.95853096,183.59,183.56,67.14780998]
[1761866124955,0.72,183.58,183.56,67.14780998]
[1761866127245,0.2,183.61,183.57,5.95853096]
[1761866127554,0.2,183.61,183.6,5.23853096]
[1761866127960,0.2,183.61,183.6,5.95853096]
[1761866128531,0.2,183.61,183.6,11.40515405]
[1761866128861,0.2,183.61,183.6,10.68515405]
[1761866129744,0.87,183.61,183.6,5.44662309]
[1761866129956,0.87,183.61,183.59,5.44690404]
[1761866130572,0.2,183.61,183.58,10.6857005]
[1761866130781,0.67,183.6,183.58,5.44716954]
[1761866131091,0.2,183.61,183.58,10.6857005]
[1761866131248,0.87,183.61,183.58,10.6857005]
[1761866132661,0.67,183.6,183.58,10.6857005]
[1761866133066,0.67,183.6,183.58,72.3857005]
[1761866133268,0.2,183.61,183.58,72.3857005]
[1761866133449,0.2,183.61,183.6,5.23853096]
[1761866134665,0.2,183.61,183.6,10.68515405]
[1761866135766,0.2,183.61,183.6,11.35515405]
[1761866136064,0.2,183.61,183.58,5.44694326]
[1761866136065,0.87,183.61,183.58,5.44694326]
[1761866136570,0.67,183.6,183.56,18.85800727]
[1761866136761,0.67,183.6,183.57,5.44751321]
[1761866136762,5.90853096,183.6,183.57,5.44751321]
[1761866136955,0.67,183.6,183.57,5.44751321]
[1761866137167,0.67,183.59,183.57,5.44751321]
[1761866138054,0.67,183.59,183.56,5.44780998]
[1761866139777,0.67,183.59,183.55,10.68658727]
[1761866140753,0.67,183.59,183.55,24.30685422]
[1761866141072,0.87,183.61,183.58,5.23853096]
[1761866141265,0.2,183.61,183.6,5.23853096]
[1761866141473,0.87,183.61,183.6,5.23853096]
[1761866141863,0.2,183.61,183.6,5.23853096]
[1761866142079,0.2,183.61,183.57,0.67]
[1761866142080,0.2,183.61,183.59,5.23853096]
[1761866143182,0.2,183.61,183.6,5.44662309]
[1761866143770,0.2,183.61,183.59,5.44684218]
[1761866143979,0.67,183.6,183.58,5.44715583]
[1761866144375,0.67,183.6,183.53,62.37]
[1761866144680,5.23853096,183.54,183.51,5.44929431]
[1761866144873,5.23853096,183.54,183.5,6.89098999]
[1761866144874,5.23853096,183.54,183.5,12.34057721]
[1761866145075,5.90853096,183.53,183.5,12.34057721]
[1761866145382,5.23853096,183.52,183.5,6.89098999]
[1761866145565,0.67,183.51,183.5,6.89098999]
[1761866146460,0.67,183.51,183.5,12.34058127]
[1761866147056,18.85587797,183.59,183.5,12.34058127]
[1761866147057,21.262,183.56,183.5,18.24911223]
[1761866147256,21.262,183.56,183.51,5.23853096]
[1761866147257,26.50053096,183.56,183.51,5.23853096]
[1761866147684,0.67,183.55,183.51,5.23853096]
[1761866147881,0.67,183.55,183.5,31.87309043]
[1761866148262,0.67,183.55,183.5,12.34058127]
[1761866148465,5.23853096,183.54,183.5,12.34058127]
[1761866148858,0.67,183.53,183.5,12.34058127]
[1761866149064,5.90853096,183.53,183.5,6.89098999]
[1761866149477,0.67,183.52,183.5,6.89098999]
[1761866150277,5.90853096,183.52,183.5,6.89098999]
[1761866150476,0.67,183.52,183.5,6.89098999]
[1761866151466,0.67,183.52,183.5,12.34053129]
[1761866151788,5.90853096,183.52,183.5,6.89098999]
[1761866152087,5.23853096,183.51,183.5,6.89098999]
[1761866152285,5.90853096,183.51,183.5,6.89098999]
[1761866152491,0.67,183.51,183.5,6.89098999]
[1761866153707,0.67,183.53,183.5,12.34058127]
[1761866153998,0.67,183.52,183.5,6.89098999]
[1761866155293,5.90853096,183.54,183.5,12.34052765]
[1761866155491,0.67,183.53,183.5,12.34052765]
[1761866155691,5.23853096,183.54,183.5,12.34052765]
[1761866155894,0.67,183.54,183.5,12.34052765]
[1761866156584,0.67,183.54,183.5,74.04052765]
[1761866158990,5.23853096,183.53,183.5,68.59098999]
[1761866159193,5.23853096,183.53,183.5,74.04054686]
[1761866159494,0.71,183.53,183.5,74.04054686]
[1761866160681,0.71,183.53,183.5,68.59098999]
[1761866160886,0.71,183.53,183.5,74.04054095]
[1761866161292,5.23853096,183.51,183.5,68.59098999]
[1761866161594,0.71,183.55,183.5,13.04054726]
[1761866162193,5.94853096,183.55,183.5,12.34054726]
[1761866162394,11.39682172,183.55,183.5,12.34054726]
[1761866162574,0.71,183.54,183.5,12.34054726]
[1761866162777,5.94853096,183.54,183.5,6.89098999]
[1761866163183,0.71,183.53,183.5,6.89098999]
[1761866163382,0.71,183.53,183.5,12.34053785]
[1761866163887,5.94853096,183.53,183.5,6.89098999]
[1761866164297,0.71,183.52,183.5,6.89098999]
[1761866164800,5.23853096,183.56,183.51,0.7]
[1761866165492,0.91,183.61,183.54,5.23853096]
[1761866165688,5.94853096,183.6,183.54,5.23853096]
[1761866165885,5.23853096,183.58,183.51,67.63853096]
[1761866166088,5.23853096,183.58,183.51,62.4]
[1761866166289,0.71,183.59,183.51,61.7]
[1761866166290,5.23853096,183.53,183.51,61.7]
[1761866166474,5.23853096,183.53,183.5,6.89098999]
[1761866166673,0.71,183.53,183.5,12.34055037]
[1761866166878,0.71,183.53,183.5,6.89098999]
[1761866167282,5.94853096,183.53,183.5,12.34052402]
[1761866167675,0.71,183.52,183.5,12.34052402]
[1761866169900,0.71,183.52,183.5,6.89098999]
[1761866170414,0.91,183.61,183.51,5.93853096]
[1761866170605,0.91,183.61,183.56,5.23853096]
[1761866171016,0.71,183.6,183.56,5.93853096]
[1761866171220,0.71,183.6,183.57,10.68604417]
[1761866171984,0.2,183.61,183.59,5.23853096]
[1761866173202,0.2,183.61,183.6,5.44662309]
[1761866173531,0.2,183.61,183.6,11.38515405]
[1761866173914,0.2,183.61,183.6,5.44662309]
[1761866174125,0.2,183.61,183.6,10.68515405]